bitfinex/quotes_ETHUSD_20260305
["timestamp","ask_amount","ask_price","bid_price","bid_amount"]
[1772685933852,0.49342389,2143.6,2142.3,0.14948499]
[1772685934071,0.1660574,2143.8,2142.7,1.16675222]
[1772685934226,0.49342389,2143.7,2141.9,0.065536]
[1772685934429,0.49342389,2143.7,2142.1,0.45832197]
[1772685935123,0.49342389,2143.7,2141.8,4.81801907]
[1772685935124,0.49342389,2143.5,2141.7,1.62558607]
[1772685935358,0.49342389,2143.5,2141.8,0.60780696]
[1772685935546,0.49342389,2143.5,2142.1,0.45832197]
[1772685936128,0.65948129,2143.8,2142.3,0.60780696]
[1772685936362,1.82564095,2143.8,2142.6,0.14948499]
[1772685936532,0.1660574,2143.8,2142.7,0.14948499]
[1772685936865,0.1660574,2143.8,2142.6,0.45832197]
[1772685936866,0.08695435,2144.6,2143.1,0.45832197]
[1772685937065,1.25268252,2144.6,2143.1,0.45832197]
[1772685937364,0.49342389,2144.5,2143.1,0.45832197]
[1772685937729,0.49342389,2144.5,2142.7,0.7274231]
[1772685938136,0.49342389,2144.3,2142.9,1.6249653]
[1772685938929,1.16582727,2144.4,2143.1,0.45832197]
[1772685939366,0.49342389,2144.3,2143.1,0.45832197]
[1772685939565,0.49342389,2144.3,2142.7,1.89416435]
[1772685940258,0.49342389,2144.1,2142.7,1.89416435]
[1772685940456,0.49342389,2144.1,2142.7,0.26910113]
[1772685941689,0.49342389,2144.1,2142.7,1.4358498]
[1772685941833,1.65919679,2144.5,2142.8,0.45832197]
[1772685942036,1.1657729,2144.5,2143.2,0.45832197]
[1772685942271,1.25269013,2144.6,2143.4,0.45832197]
[1772685942874,1.25269013,2144.6,2143.1,1.16649408]
[1772685942875,0.49342389,2144.5,2143.1,1.16649408]
[1772685943365,1.25269013,2144.6,2143.2,0.45832197]
[1772685943860,1.74611402,2144.6,2143.2,0.45832197]
[1772685944063,0.49342389,2144.5,2143.2,0.45832197]
[1772685944236,0.002,2144.3,2143.3,1.1664256]
[1772685944438,0.49542389,2144.3,2143.2,1.16644637]
[1772685945356,0.49542389,2144.3,2142.8,5.12424208]
[1772685945357,0.49542389,2144.3,2142.9,1.16664333]
[1772685945666,0.49542389,2144.3,2142.7,1.43583683]
[1772685946175,0.49342389,2144.1,2142.7,0.26910113]
[1772685947169,0.49342389,2144.1,2142.7,1.43585294]
[1772685947467,0.49342389,2144.0,2142.7,0.26910113]
[1772685948168,0.49342389,2144.0,2142.7,1.43585204]
[1772685948473,1.16609916,2143.9,2142.7,1.43585204]
[1772685948843,1.16609916,2143.9,2142.7,1.93557507]
[1772685949639,1.64416089,2143.9,2142.7,1.93557507]
[1772685950268,1.16609916,2143.9,2142.7,1.43585204]
[1772685950567,0.47806173,2143.8,2142.7,1.43585204]
[1772685952476,0.47806173,2143.8,2141.9,4.66832775]
[1772685952778,0.47806173,2143.8,2140.3,0.001]
[1772685952779,0.45478131,2142.4,2140.9,0.49972303]
[1772685952944,1.95885177,2142.7,2140.9,0.49972303]
[1772685952945,0.45478131,2142.2,2140.9,0.49972303]
[1772685953645,0.45478131,2142.1,2140.6,1.16787057]
[1772685953845,0.45478131,2142.1,2140.5,0.49972303]
[1772685953846,0.45478131,2142.1,2140.5,1.66766202]
[1772685954072,1.95885177,2142.1,2140.5,0.49972303]
[1772685954281,1.95885177,2142.1,2140.3,1.16903303]
[1772685954282,0.45478131,2141.8,2140.3,1.16903303]
[1772685954455,0.45478131,2141.8,2140.3,0.001]
[1772685954456,0.45478131,2141.6,2140.3,0.001]
[1772685954979,1.464536,2142.4,2140.5,0.49972303]
[1772685955175,4.66755478,2142.6,2141.0,0.49972303]
[1772685955176,1.16680668,2142.6,2141.0,0.49972303]
[1772685955481,1.16680668,2142.6,2141.2,0.49972303]
[1772685956551,0.97778476,2141.2,2140.3,0.001]
[1772685956746,0.97778476,2141.2,2139.4,0.49972303]
[1772685956747,0.47806173,2141.2,2139.6,0.49972303]
[1772685957275,0.43143299,2141.2,2141.1,0.001]
[1772685957455,0.43143299,2141.2,2139.6,0.49972303]
[1772685958278,0.43143299,2141.2,2140.6,0.001]
[1772685958458,0.43143299,2141.2,2139.6,0.49972303]
[1772685958659,0.47806173,2141.0,2139.7,1.16838809]
[1772685959376,0.47806173,2141.0,2139.7,1.66811112]
[1772685959578,2.67327871,2141.3,2139.8,0.49972303]
[1772685959782,3.84079641,2141.3,2139.8,0.49972303]
[1772685959995,0.47806173,2140.7,2138.8,5.1750581]
[1772685960151,0.47806173,2140.5,2138.8,4.67533507]
[1772685960343,1.5,2140.6,2138.8,4.67533507]
[1772685960344,0.47806173,2140.3,2138.8,4.67533507]
[1772685960563,0.47806173,2140.3,2138.6,0.001]
[1772685960564,0.47806173,2140.1,2138.6,0.001]
[1772685961172,0.47806173,2140.1,2138.6,0.50072303]
[1772685962872,1.64628602,2140.0,2138.7,1.16893439]
[1772685963183,0.61541421,2138.7,2137.9,0.001]
[1772685963390,2.15953703,2139.4,2137.9,0.001]
[1772685963391,0.4068756,2139.0,2137.9,0.001]
[1772685963592,0.4724116,2138.9,2137.9,0.001]
[1772685964660,1.9488756,2138.8,2137.9,0.001]
[1772685964858,1.57580999,2138.7,2137.9,0.001]
[1772685965254,1.548,2138.6,2137.9,0.001]
[1772685965555,0.4068756,2138.5,2137.6,0.001]
[1772685966050,0.4068756,2138.4,2137.6,0.001]
[1772685966867,6.83527462,2138.8,2137.6,0.001]
[1772685966868,1.9678756,2138.6,2137.6,0.001]
[1772685967083,1.9688756,2138.5,2137.6,0.001]
[1772685967275,0.4068756,2138.5,2137.6,0.001]
[1772685967592,1.564,2138.4,2137.6,0.001]
[1772685967885,1.9708756,2138.4,2137.6,0.001]
[1772685968191,1.9708756,2138.4,2137.0,1.17086429]
[1772685968192,0.4068756,2138.3,2137.0,1.17086429]
[1772685968383,0.4068756,2138.3,2137.0,0.001]
[1772685968767,1.57513802,2138.1,2137.0,0.001]
[1772685968967,0.4058756,2138.0,2137.0,0.001]
[1772685969163,3.01864942,2137.9,2137.0,0.001]
[1772685969859,2.61277382,2137.9,2137.0,0.001]
[1772685970059,1.16926242,2138.1,2137.0,0.001]
[1772685970756,1.16926242,2138.1,2137.0,0.50072303]
[1772685971079,5.08167704,2138.7,2137.0,0.50072303]
[1772685971080,3.78180444,2138.6,2137.2,0.49972303]
[1772685971381,3.78180444,2138.6,2137.2,0.50072303]
[1772685971593,4.18768004,2138.6,2137.2,0.50072303]
[1772685972560,1.591,2138.5,2137.2,0.50072303]
[1772685973256,4.18768004,2138.6,2137.3,1.16970008]
[1772685973792,4.18768004,2138.6,2137.2,5.1797208]
[1772685973793,0.4714116,2138.3,2137.2,0.001]
[1772685974571,0.4714116,2138.3,2137.0,0.001]
[1772685975256,0.4058756,2138.1,2137.0,0.001]
[1772685975460,1.16931711,2138.0,2137.0,0.001]
[1772685975871,2.0078756,2137.9,2137.0,0.001]
[1772685976080,2.0078756,2137.9,2136.8,0.001]
[1772685976081,0.4048756,2137.8,2136.8,0.001]
[1772685976479,1.603,2137.7,2136.8,0.001]
[1772685976768,1.669536,2137.9,2136.8,0.001]
[1772685976974,1.604,2137.8,2136.8,0.50072303]
[1772685977204,0.4048756,2137.9,2136.8,0.001]
[1772685977508,0.065536,2137.4,2136.8,0.001]
[1772685978067,0.4704116,2137.4,2136.8,0.001]
[1772685979228,4.78135994,2137.5,2136.9,0.47226813]
[1772685979229,2.64754161,2137.5,2136.9,0.47226813]
[1772685979431,2.61277382,2138.6,2136.9,0.47226813]
[1772685979432,3.57453344,2138.5,2136.9,0.47226813]
[1772685979696,1.608,2138.3,2137.1,0.47226813]
[1772685979890,1.609,2138.3,2137.1,0.47226813]
[1772685980092,2.64754161,2138.2,2137.1,0.47226813]
[1772685981102,2.40548972,2138.4,2137.1,0.47226813]
[1772685981401,2.64754161,2138.3,2137.1,0.47226813]
[1772685981570,1.16920774,2138.2,2137.2,1.64202294]
[1772685981772,2.64754161,2138.1,2137.2,1.64202294]
[1772685984019,1.16931711,2138.0,2137.2,1.64202294]
[1772685984877,2.64754161,2137.9,2137.2,1.64202294]
[1772685985073,2.64754161,2137.9,2137.1,0.001]
[1772685985271,4.26154161,2137.9,2137.1,1.17080169]
[1772685985506,2.64754161,2137.9,2137.2,0.47226813]
[1772685986078,2.64754161,2137.9,2137.4,0.47226813]
[1772685986580,0.002,2138.1,2137.4,0.47226813]
[1772685986905,2.64754161,2138.0,2137.4,0.47226813]
[1772685988314,2.64754161,2138.0,2137.5,1.16959064]
[1772685988608,0.002,2138.1,2137.6,0.48340941]
[1772685988906,2.64954161,2138.1,2137.6,0.48340941]
[1772685989518,3.81880513,2138.1,2137.5,1.16959064]
[1772685989903,2.64954161,2138.1,2137.5,1.16959064]
[1772685990086,2.64954161,2138.1,2137.7,1.16948121]
[1772685991001,2.64954161,2138.1,2137.6,1.65290388]
[1772685991002,3.81880506,2138.1,2137.6,1.65290388]
[1772685991707,3.81880623,2138.1,2137.6,1.65290388]
[1772685991998,3.81880623,2138.1,2137.5,4.67827795]
[1772685991999,3.81880623,2138.1,2137.5,1.16954569]
[1772685992207,3.81880623,2138.1,2137.4,5.16189035]
[1772685992580,3.81880882,2138.1,2137.4,5.16189035]
[1772685993885,2.64954161,2138.1,2137.4,5.16189035]
[1772685994212,2.64954161,2138.1,2137.6,1.65294533]
[1772685994410,3.81881008,2138.1,2137.6,1.65294533]
[1772685996210,3.81881008,2138.1,2137.6,0.48340941]
[1772685996507,3.81881008,2138.1,2137.6,1.65294397]
[1772685996682,3.81881008,2138.1,2137.3,0.48340941]
[1772685997882,0.002,2137.9,2137.3,0.48340941]
[1772685998194,0.002,2137.9,2137.5,0.001]
[1772685998581,2.64754161,2137.8,2137.5,0.001]
[1772686000081,0.002,2137.9,2137.5,0.001]
[1772686000496,0.002,2137.9,2137.2,0.001]
[1772686000711,0.002,2137.9,2136.9,0.48440941]
[1772686000712,0.4068756,2137.9,2136.9,0.48440941]
[1772686000917,0.4068756,2137.9,2136.9,0.001]
[1772686001407,2.0218756,2137.8,2136.9,0.001]
[1772686002114,1.617,2137.7,2136.9,0.001]
[1772686002283,1.617,2137.6,2136.9,0.001]
[1772686002488,1.16959064,2137.5,2136.9,0.001]
[1772686004810,1.616,2137.4,2136.9,0.001]
[1772686006026,4.67836257,2137.7,2136.9,0.48440941]
[1772686006334,1.616,2137.6,2136.9,0.48440941]
[1772686006504,1.615,2137.6,2136.9,0.48440941]
[1772686006701,1.16959064,2137.5,2136.9,1.65428398]
[1772686006905,1.16959064,2137.5,2136.9,0.48440941]
[1772686007807,1.16959064,2137.5,2136.9,0.001]
[1772686008028,1.16959064,2137.5,2137.0,0.48340941]
[1772686008409,2.78456079,2137.6,2137.0,0.48340941]
[1772686009225,1.614,2137.5,2137.0,0.48340941]
[1772686009427,1.614,2137.4,2136.9,1.17091141]
[1772686009618,1.614,2137.4,2136.9,0.001]
[1772686010532,1.613,2137.4,2136.9,1.17091604]
[1772686010831,1.613,2137.4,2136.9,1.66590465]
[1772686011333,1.16970008,2137.3,2136.9,0.001]
[1772686011544,2.78270008,2137.3,2136.9,0.001]
[1772686011715,1.16970008,2137.3,2136.9,0.001]
[1772686011921,1.16970008,2137.3,2137.1,0.001]
[1772686012446,1.17165104,2137.4,2137.1,0.001]
[1772686013236,0.002,2137.4,2137.1,0.001]
[1772686018432,0.002,2137.4,2137.1,0.49598861]
[1772686018939,0.002,2137.6,2137.1,0.49598861]
[1772686019938,0.002,2137.6,2137.1,0.44935987]
[1772686021333,0.002,2137.6,2137.1,1.61916324]
[1772686021512,0.002,2137.6,2137.1,0.44935987]
[1772686022128,0.002,2137.6,2137.1,1.61916454]
[1772686022445,1.607,2137.5,2137.1,1.61916454]
[1772686022638,2.77659128,2137.5,2137.1,1.61916454]
[1772686022847,2.77659128,2137.5,2137.1,0.44935987]
[1772686023142,1.16959128,2137.5,2137.1,0.44935987]
[1772686024831,1.16959128,2137.5,2137.0,1.16986155]
[1772686025245,1.16959128,2137.5,2137.1,0.001]
[1772686025552,0.002,2137.4,2137.1,0.001]
[1772686027047,0.002,2137.9,2137.2,0.49498861]
[1772686027417,1.17338559,2137.9,2137.2,0.49498861]
[1772686027620,0.002,2137.8,2137.1,0.001]
[1772686027852,1.607,2137.8,2137.1,0.001]
[1772686028052,0.002,2137.7,2137.1,0.001]
[1772686028348,1.605,2137.8,2137.1,0.001]
[1772686028552,0.002,2137.7,2137.1,0.001]
[1772686029039,0.47986117,2137.7,2137.1,0.001]
[1772686030351,1.17153592,2137.6,2137.1,0.001]
[1772686030947,0.002,2137.5,2137.1,0.001]
[1772686031443,1.64739709,2137.6,2137.1,0.001]
[1772686032740,2.08386117,2137.5,2137.1,0.001]
[1772686032939,0.47986117,2137.5,2137.1,0.001]
[1772686033146,1.604,2137.4,2137.1,0.001]
[1772686033725,0.47786117,2137.4,2137.1,0.001]
[1772686033926,1.604,2137.3,2137.1,0.001]
[1772686034425,0.001,2137.2,2136.8,0.001]
[1772686034625,0.47886117,2137.2,2136.8,0.001]
[1772686035064,1.17080955,2137.1,2136.8,0.001]
[1772686035627,0.001,2137.0,2136.8,0.001]
[1772686035829,0.001,2137.0,2136.6,0.001]
[1772686036158,0.001,2136.9,2136.6,0.001]
[1772686036458,0.001,2137.0,2136.6,0.001]
[1772686037338,0.001,2137.0,2136.8,0.001]
[1772686037533,0.001,2137.0,2136.6,0.001]
[1772686037939,1.604,2136.9,2136.6,0.001]
[1772686038857,0.001,2136.8,2136.6,0.001]
[1772686039447,1.17097379,2136.8,2136.6,0.001]
[1772686039631,2.77397379,2136.8,2136.6,0.001]
[1772686043746,2.77497379,2136.8,2136.6,0.001]
[1772686044460,4.68100177,2137.3,2136.6,0.48331478]
[1772686044663,1.17174216,2137.3,2136.6,0.48331478]
[1772686045947,0.002,2137.3,2136.8,0.48231478]
[1772686046144,0.002,2137.3,2136.6,1.17107193]
[1772686046363,0.002,2137.3,2136.6,1.65338671]
[1772686046741,0.49445228,2137.3,2136.6,1.17107193]
[1772686046938,0.49445228,2137.3,2136.6,0.001]
[1772686047140,1.603,2137.2,2136.6,0.48993615]
[1772686047455,0.002,2137.3,2136.6,1.17107775]
[1772686047762,1.603,2137.2,2136.6,1.6600139]
[1772686048466,1.16980955,2137.1,2136.6,0.001]
[1772686048667,1.66226183,2137.1,2136.6,0.001]
[1772686049477,0.49245228,2137.0,2136.8,0.001]
[1772686050446,1.16991904,2136.9,2136.8,0.001]
[1772686050640,0.002,2137.1,2136.8,0.001]
[1772686051077,2.77470499,2137.3,2136.8,0.001]
[1772686051583,1.17170499,2137.3,2136.8,0.48993615]
[1772686051965,1.66415727,2137.3,2136.8,0.001]
[1772686052278,0.49245228,2137.2,2136.8,0.001]
[1772686052481,1.16986429,2137.0,2136.8,0.001]
[1772686054166,1.1717453,2137.3,2136.8,0.001]
[1772686054567,0.002,2137.3,2136.8,0.001]
[1772686054883,1.604,2137.3,2136.8,0.001]
[1772686055249,5.85034592,2137.5,2136.8,0.48993615]
[1772686055578,4.68074087,2137.4,2136.8,0.48993615]
[1772686055983,4.68074087,2137.4,2136.8,0.001]
[1772686056283,4.68074087,2137.3,2136.8,0.001]
[1772686056485,5.17319315,2137.4,2136.8,0.001]
[1772686056785,1.66215236,2137.3,2136.8,0.001]
[1772686056962,0.49245228,2137.2,2136.8,0.001]
[1772686057293,4.68074087,2137.2,2136.8,0.001]
[1772686057490,1.16964378,2137.5,2136.8,0.48993615]
[1772686057660,1.601,2137.4,2136.8,0.48993615]
[1772686058269,0.49245228,2137.2,2136.6,1.17104479]
[1772686058561,1.16980955,2137.1,2136.6,0.001]
[1772686058960,4.68074087,2137.0,2136.6,0.001]
[1772686059382,1.16980955,2137.1,2136.6,0.001]
[1772686059606,1.16974204,2137.3,2136.6,0.001]
[1772686060071,1.16974204,2137.3,2136.6,0.48993615]
[1772686060279,2.77074204,2137.3,2136.6,0.48993615]
[1772686060780,4.68074087,2137.2,2136.6,1.66001895]
[1772686061785,4.68074087,2137.2,2137.0,0.001]
[1772686061976,4.68274087,2137.2,2137.0,0.001]
[1772686062363,4.68074087,2137.1,2136.8,0.001]
[1772686062549,0.002,2137.2,2136.8,0.001]
[1772686062550,4.68274087,2137.2,2136.8,0.001]
[1772686062755,1.16986429,2137.0,2136.8,0.001]
[1772686063687,5.85060516,2137.0,2136.8,0.001]
[1772686066085,4.68074087,2136.9,2136.8,0.001]
[1772686066271,1.16986429,2137.0,2136.8,0.001]
[1772686066477,5.85060516,2137.0,2136.8,0.001]
[1772686066858,4.68074087,2136.9,2136.8,0.001]
[1772686067183,5.85065991,2136.9,2136.8,0.001]
[1772686067890,1.16989605,2137.0,2136.8,0.001]
[1772686068103,5.85063692,2137.0,2136.8,0.001]
[1772686069075,5.85065991,2136.9,2136.8,0.001]
[1772686070192,0.002,2137.2,2136.8,0.001]
[1772686070370,4.68074087,2137.1,2136.8,0.001]
[1772686070573,7.45153688,2137.2,2136.8,0.001]
[1772686071983,4.68074087,2137.1,2136.8,0.001]
[1772686072192,3.26955908,2137.2,2136.8,0.001]
[1772686072351,4.68074087,2137.1,2136.8,0.001]
[1772686073060,3.26955908,2137.2,2136.6,0.001]
[1772686073061,5.17950394,2137.0,2136.6,0.001]
[1772686073260,0.49876307,2137.0,2136.6,0.001]
[1772686074084,5.85065991,2136.9,2136.5,0.001]
[1772686074278,5.85065991,2136.9,2136.8,0.001]
[1772686074579,1.16991904,2136.9,2136.8,0.001]
[1772686074780,6.34942298,2136.9,2136.5,0.001]
[1772686074981,6.27974087,2136.8,2136.5,0.001]
[1772686075518,4.68074087,2136.7,2136.5,0.001]
[1772686076278,5.85082417,2136.6,2136.5,0.001]
[1772686077572,4.68074087,2136.6,2136.5,0.001]
[1772686077768,1.17002226,2136.8,2136.5,0.001]
[1772686077968,1.17002226,2136.8,2136.5,0.46495382]
[1772686077969,4.68074087,2136.8,2136.5,0.46495382]
[1772686078175,5.85071612,2136.8,2136.5,0.46495382]
[1772686078573,4.68074087,2136.8,2136.5,1.63507652]
[1772686078776,4.68074087,2136.8,2136.5,0.46495382]
[1772686078969,4.68074087,2136.8,2136.5,1.63508534]
[1772686079168,2.76994596,2136.9,2136.5,1.63508534]
[1772686079366,4.68074087,2136.8,2136.5,0.46495382]
[1772686079587,4.68074087,2136.8,2136.5,0.001]
[1772686080262,1.1700833,2136.6,2136.3,0.001]
[1772686080655,0.49876307,2136.7,2136.3,0.001]
[1772686080859,6.28174087,2136.8,2136.3,0.001]
[1772686080860,1.17001471,2136.8,2136.3,0.001]
[1772686081087,6.28174087,2136.7,2136.3,0.001]
[1772686081667,4.68074087,2136.7,2136.3,0.001]
[1772686082287,1.1700833,2136.6,2136.3,0.001]
[1772686082479,5.85082417,2136.6,2136.3,0.001]
[1772686083364,4.68074087,2136.6,2136.3,0.001]
[1772686083563,1.17007055,2136.7,2136.3,0.001]
[1772686083863,7.45281142,2136.7,2136.3,0.001]
[1772686084284,2.77207055,2136.7,2136.3,0.001]
[1772686084485,4.68074087,2136.6,2136.3,0.001]
[1772686086503,4.68074087,2136.5,2136.3,0.001]
[1772686086988,0.002,2136.4,2136.3,0.001]
[1772686090882,4.68274087,2136.4,2136.3,0.001]
[1772686091918,4.68074087,2136.3,2136.0,0.001]
[1772686092502,0.49876307,2136.3,2135.8,1.17052001]
[1772686092809,0.49876307,2136.3,2135.6,0.46495382]
[1772686092810,1.17035719,2136.1,2135.6,0.46495382]
[1772686093171,3.51022086,2136.0,2135.6,0.001]
[1772686093474,0.49876307,2135.9,2135.6,0.001]
[1772686094096,2.10576307,2135.9,2135.6,0.001]
[1772686094283,4.00898393,2135.8,2135.6,0.001]
[1772686094683,4.00898393,2135.8,2135.4,0.001]
[1772686094684,0.49876307,2135.8,2135.4,0.001]
[1772686094900,1.17057639,2135.7,2135.4,0.001]
[1772686095082,4.68079725,2135.7,2135.4,0.001]
[1772686095286,1.66926983,2135.9,2135.4,0.001]
[1772686095678,3.51022086,2135.8,2135.4,0.001]
[1772686096082,1.66926983,2135.9,2135.4,0.001]
[1772686096083,3.51022086,2135.7,2135.4,0.001]
[1772686096303,0.49876307,2135.8,2135.4,0.001]
[1772686096503,4.00898393,2135.8,2135.4,0.001]
[1772686096706,3.51022086,2135.7,2135.4,0.001]
[1772686096906,4.68075079,2135.8,2135.4,0.001]
[1772686097114,1.17052993,2135.8,2135.4,0.001]
[1772686097406,3.51022086,2135.9,2135.5,0.46395382]
[1772686097607,0.49876307,2136.2,2135.5,0.46395382]
[1772686097608,1.17037698,2136.1,2135.5,0.46395382]
[1772686097806,3.51022086,2136.2,2135.5,0.46395382]
[1772686098724,3.51022086,2136.1,2135.5,0.46395382]
[1772686098885,0.47011992,2136.3,2135.5,1.17066321]
[1772686098886,0.47011992,2136.2,2135.5,1.17066321]
[1772686099083,0.47011992,2136.2,2135.6,0.46798404]
[1772686099084,3.51022086,2136.2,2135.6,0.46798404]
[1772686099884,3.51022086,2136.1,2135.6,0.46798404]
[1772686100085,3.51022086,2136.2,2135.6,0.46798404]
[1772686100385,3.98034078,2136.2,2135.6,0.46898404]
[1772686100704,0.47011992,2136.1,2135.6,0.001]
[1772686101003,0.47011992,2135.9,2135.4,0.001]
[1772686102607,3.51022086,2135.8,2135.4,0.001]
[1772686102788,0.47011992,2135.6,2135.1,0.001]
[1772686102980,0.47011992,2135.6,2134.7,2.20238711]
[1772686102981,0.47011992,2135.4,2134.7,1.17109314]
[1772686103386,3.98034078,2135.3,2134.7,1.17109314]
[1772686103594,0.47011992,2135.3,2134.7,1.17109314]
[1772686103997,0.47011992,2135.3,2134.6,1.17113799]
[1772686104193,3.98034078,2135.2,2134.6,1.17113799]
[1772686104417,0.47011992,2135.2,2134.6,1.17113799]
[1772686105214,1.64102526,2135.1,2134.4,1.17128935]
[1772686105411,5.15124612,2135.1,2134.4,1.17128935]
[1772686106799,3.98034078,2135.1,2134.4,1.17128935]
[1772686107188,3.51022086,2135.0,2134.4,1.63143482]
[1772686107390,3.51022086,2135.0,2134.5,0.46014547]
[1772686107721,3.51022086,2134.9,2134.5,0.46014547]
[1772686107893,3.51022086,2135.1,2134.5,0.46014547]
[1772686108099,3.51022086,2135.0,2134.5,0.46014547]
[1772686108611,3.51022086,2134.9,2134.4,1.17128935]
[1772686108816,3.51022086,2134.8,2134.4,1.17128935]
[1772686109012,1.66832263,2135.1,2134.3,1.49408681]
[1772686109013,4.00762977,2135.0,2134.3,1.49408681]
[1772686109207,1.66842394,2134.9,2134.3,1.49408681]
[1772686109408,3.51022086,2134.9,2134.4,0.46014547]
[1772686109601,3.01022086,2134.8,2134.4,0.46014547]
[1772686109800,0.49740891,2135.2,2134.4,0.46014547]
[1772686110022,0.49740891,2135.1,2134.4,0.46014547]
[1772686110403,1.66820521,2135.3,2134.4,0.46014547]
[1772686110600,0.49740891,2135.3,2134.4,0.46014547]
[1772686111214,3.01022086,2135.2,2134.4,0.46014547]
[1772686111928,1.66831425,2135.1,2134.5,1.17123448]
[1772686112325,3.01022086,2135.0,2134.5,1.17123448]
[1772686112523,3.01022086,2135.0,2134.6,0.001]
[1772686112892,3.01022086,2134.9,2134.6,0.001]
[1772686113413,3.01022086,2134.8,2134.6,0.001]
[1772686113602,0.49740891,2135.1,2134.6,0.001]
[1772686113802,3.01022086,2135.0,2134.6,0.001]
[1772686114020,0.49940891,2136.0,2134.7,0.09613579]
[1772686114223,3.01022086,2135.9,2134.7,0.09613579]
[1772686114915,3.50762977,2135.9,2134.7,0.09613579]
[1772686115095,0.002,2136.0,2134.7,0.09613579]
[1772686115296,0.002,2136.0,2134.8,0.09613579]
[1772686116093,0.49740891,2136.1,2135.0,0.14213579]
[1772686116591,1.66962723,2136.4,2135.1,0.14213579]
[1772686116790,0.49940891,2136.4,2135.3,0.14213579]
[1772686117993,0.49740891,2136.3,2135.3,0.14213579]
[1772686118206,1.66766002,2136.3,2135.5,0.14213579]
[1772686118645,0.49740891,2136.3,2135.5,0.14213579]
[1772686119626,0.49740891,2136.3,2135.1,6.8856689]
[1772686119627,0.49740891,2136.1,2134.9,2.20238711]
[1772686119824,0.49740891,2136.0,2134.7,1.17112474]
[1772686120132,0.49740891,2136.0,2134.8,0.14213579]
[1772686120336,0.49740891,2135.8,2134.9,1.17101503]
[1772686120537,0.49740891,2135.8,2134.9,1.31315082]
[1772686121114,0.49740891,2135.8,2134.9,1.17101503]
[1772686122238,1.17057639,2135.7,2134.9,1.17101503]
[1772686122641,0.49740891,2135.6,2134.9,1.17101503]
[1772686123343,0.49740891,2135.6,2134.7,4.68441126]
[1772686124446,0.49740891,2135.4,2134.6,0.001]
[1772686124634,0.49740891,2135.4,2134.6,0.14313579]
[1772686125453,0.49740891,2135.4,2134.9,0.001]
[1772686128522,1.17070843,2135.5,2134.9,0.001]
[1772686128948,0.45976005,2135.5,2134.9,0.001]
[1772686131146,0.45976005,2135.4,2134.9,0.001]
[1772686132955,0.002,2135.7,2135.0,0.49198726]
[1772686133126,0.002,2135.9,2135.3,0.49198726]
[1772686133328,0.002,2136.2,2135.4,0.49198726]
[1772686135260,0.002,2136.2,2135.6,0.49198726]
[1772686137450,0.002,2136.2,2135.7,1.66256365]
[1772686138351,0.002,2136.0,2135.7,1.66256365]
[1772686141755,0.002,2136.0,2135.8,0.49198726]
[1772686142547,0.002,2136.0,2135.1,0.001]
[1772686142548,0.45976005,2135.9,2135.1,0.001]
[1772686144159,0.45976005,2135.7,2135.1,0.001]
[1772686144949,0.45976005,2135.7,2135.1,1.539]
[1772686145533,0.002,2136.0,2135.1,1.539]
[1772686145747,0.45976005,2135.9,2135.1,1.539]
[1772686146168,0.45976005,2135.7,2135.1,0.001]
[1772686146346,0.45976005,2135.7,2135.2,1.538]
[1772686146748,1.17050998,2135.9,2135.2,1.538]
[1772686147069,0.45976005,2135.8,2135.2,1.538]
[1772686148335,0.45976005,2135.6,2135.2,2.70880248]
[1772686148535,0.45976005,2135.6,2135.2,1.538]
[1772686148731,0.45976005,2135.6,2135.1,1.1718664]
[1772686148957,0.45976005,2135.6,2135.1,2.7098664]
[1772686149261,0.45976005,2135.6,2135.1,1.539]
[1772686149475,0.45976005,2135.6,2135.1,2.70990494]
[1772686149665,0.45976005,2135.6,2135.3,0.001]
[1772686149838,0.002,2135.5,2135.1,0.001]
[1772686150039,0.45976005,2135.4,2135.1,0.001]
[1772686150237,0.45976005,2135.3,2135.1,0.001]
[1772686152668,1.1708505,2135.2,2135.1,0.001]
[1772686152853,1.63061055,2135.2,2135.1,0.001]
[1772686153364,0.45976005,2135.2,2135.1,0.001]
[1772686157186,0.46176005,2135.5,2135.1,0.001]
[1772686157373,1.6324887,2135.5,2135.1,0.001]
[1772686157973,0.45976005,2135.4,2135.1,0.001]
[1772686163187,0.47407745,2135.3,2135.1,0.001]
[1772686163546,1.1707866,2135.4,2135.1,0.001]
[1772686163851,1.1707866,2135.4,2135.3,0.001]
[1772686165358,4.68485354,2135.5,2135.3,0.001]
[1772686170756,5.157586,2135.5,2135.3,0.001]
[1772686172857,0.47273246,2135.4,2135.3,0.001]
[1772686173062,0.47273246,2135.4,2134.9,0.001]
[1772686173385,0.47273246,2135.2,2134.9,0.001]
[1772686173578,1.17079567,2135.3,2134.9,0.11090858]
[1772686174596,1.64352813,2135.3,2134.9,0.001]
[1772686174799,0.47273246,2135.2,2134.9,0.001]
[1772686175294,1.17086729,2135.2,2134.9,0.001]
[1772686176979,1.64357138,2135.3,2134.9,0.001]
[1772686177377,1.17083892,2135.3,2135.1,0.001]
[1772686177789,1.17283892,2135.3,2135.1,0.11090858]
[1772686179273,0.002,2135.3,2135.1,1.28180617]
[1772686179482,0.002,2135.3,2135.1,0.11090858]
[1772686179793,0.002,2135.3,2135.1,0.001]
[1772686181374,0.002,2135.3,2135.1,0.11090858]
[1772686182500,0.002,2135.3,2135.1,0.001]
[1772686185582,0.002,2135.3,2134.9,1.17198301]
[1772686190587,0.002,2135.6,2134.9,1.17198301]
[1772686190789,0.002,2135.6,2135.1,0.001]
[1772686191088,0.5,2135.8,2135.1,1.17190534]
[1772686191902,1.48859691,2135.9,2135.1,1.17190534]
[1772686192286,0.31812441,2135.9,2135.1,1.17190534]
[1772686197703,0.31812441,2135.9,2135.1,0.001]
[1772686201626,0.31812441,2135.9,2135.1,2.20338711]
[1772686201813,0.31812441,2135.9,2135.2,1.1708505]
[1772686202016,0.31812441,2135.9,2135.2,3.37323761]
[1772686202017,0.21921278,2135.9,2135.2,3.37323761]
[1772686202327,0.002,2136.2,2135.2,3.37323761]